fUST/lending_fUST_20240823
["ID","MTS","AMOUNT","RATE_DAILY","PERIOD"]
[335651504,1724400642205,-500.0,0.00016438,2]
[335651506,1724400642215,-500.0,0.00016438,2]
[335651508,1724400642225,-500.0,0.00016438,2]
[335651510,1724400642234,-500.0,0.00016438,2]
[335651512,1724400642245,-828.85,0.00016438,2]
[335651514,1724400642255,-500.0,0.00016438,2]
[335651516,1724400642264,-2428.32,0.00016438,2]
[335651518,1724400642274,-500.0,0.00016438,2]
[335651520,1724400642284,-500.0,0.00016438,2]
[335651521,1724400642293,-500.0,0.00016438,2]
[335651523,1724400642302,-500.0,0.00016438,2]
[335651525,1724400642312,-500.0,0.00016438,2]
[335651527,1724400642322,-500.0,0.00016438,2]
[335651529,1724400642331,-500.0,0.00016438,2]
[335651531,1724400642340,-159.76330745,0.00016438,2]
[335651533,1724400642350,-500.0,0.00016438,2]
[335651535,1724400642360,-1154.74,0.00016438,2]
[335651537,1724400642370,-500.0,0.00016438,2]
[335651538,1724400642379,-556.52,0.00016438,2]
[335651540,1724400642390,-500.0,0.00016438,2]
[335651542,1724400642399,-562.97,0.00016438,2]
[335651544,1724400642410,-500.0,0.00016438,2]
[335651546,1724400642420,-421.09128022,0.00016438,2]
[335651548,1724400642432,-307.06820388,0.00016438,2]
[335651550,1724400642442,-887.26,0.00016438,2]
[335651552,1724400642451,-500.0,0.00016438,2]
[335651554,1724400642461,-508.07,0.00016438,2]
[335651556,1724400642470,-500.0,0.00016438,2]
[335651558,1724400642480,-1779.71,0.00016438,2]
[335651560,1724400642491,-500.0,0.00016438,2]
[335651562,1724400642500,-1019.09,0.00016438,2]
[335651564,1724400642511,-500.0,0.00016438,2]
[335651566,1724400642520,-500.0,0.00016438,2]
[335651568,1724400642530,-514.92,0.00016438,2]
[335651569,1724400642539,-1386.71,0.00016438,2]
[335651571,1724400642549,-500.0,0.00016438,2]
[335651573,1724400642559,-343.11003911,0.00016438,2]
[335651575,1724400642569,-500.0,0.00016438,2]
[335651577,1724400642579,-200.0,0.00016438,2]
[335651579,1724400642588,-500.0,0.00016438,2]
[335651581,1724400642598,-500.0,0.00016438,2]
[335651583,1724400642608,-500.0,0.00016438,2]
[335651585,1724400642617,-1111.84,0.00016438,2]
[335651587,1724400642627,-500.0,0.00016438,2]
[335651589,1724400642636,-648.25,0.00016438,2]
[335651590,1724400642646,-500.0,0.00016438,2]
[335651592,1724400642655,-500.0,0.00016438,2]
[335651594,1724400642665,-500.0,0.00016438,2]
[335651596,1724400642674,-500.0,0.00016438,2]
[335651598,1724400642684,-500.0,0.00016438,2]
[335651600,1724400642694,-500.0,0.00016438,2]
[335651602,1724400642703,-673.98,0.00016438,2]
[335651604,1724400642712,-500.0,0.00016438,2]
[335651606,1724400642722,-500.0,0.00016438,2]
[335651608,1724400642731,-500.0,0.00016438,2]
[335651610,1724400642741,-500.0,0.00016438,2]
[335651611,1724400642750,-500.0,0.00016438,2]
[335651613,1724400642760,-500.0,0.00016438,2]
[335651615,1724400642770,-500.0,0.00016438,2]
[335651617,1724400642781,-500.0,0.00016438,2]
[335651619,1724400642791,-449.26554238,0.00016438,2]
[335651621,1724400642801,-765.71,0.00016438,2]
[335651623,1724400642811,-1038.35,0.00016438,2]
[335651625,1724400642821,-505.0683226,0.00016438,2]
[335651627,1724400642831,-1004.01,0.00016438,2]
[335651629,1724400642840,-504.96981069,0.00016438,2]
[335651631,1724400642849,-500.0,0.00016438,2]
[335651632,1724400642859,-500.0,0.00016438,2]
[335651634,1724400642872,-500.0,0.00016438,2]
[335651636,1724400642882,-960.17,0.00016438,2]
[335651638,1724400642891,-1510.69,0.00016438,2]
[335651640,1724400642901,-500.0,0.00016438,2]
[335651642,1724400642911,-504.72853494,0.00016438,2]
[335651644,1724400642920,-500.0,0.00016438,2]
[335651646,1724400642929,-500.0,0.00016438,2]
[335651647,1724400642939,-500.0,0.00016438,2]
[335651649,1724400642949,-500.0,0.00016438,2]
[335651651,1724400642958,-500.0,0.00016438,2]
[335651653,1724400642968,-500.0,0.00016438,2]
[335651655,1724400642978,-500.0,0.00016438,2]
[335651657,1724400642988,-626.9,0.00016438,2]
[335651659,1724400642998,-500.0,0.00016438,2]
[335651661,1724400643008,-500.0,0.00016438,2]
[335651663,1724400643018,-500.0,0.00016438,2]
[335651665,1724400643028,-500.0,0.00016438,2]
[335651666,1724400643037,-500.0,0.00016438,2]
[335651668,1724400643047,-500.0,0.00016438,2]
[335651670,1724400643056,-500.0,0.00016438,2]
[335651672,1724400643066,-500.0,0.00016438,2]
[335651674,1724400643075,-500.0,0.00016438,2]
[335651676,1724400643085,-413.05296044,0.00016438,2]
[335651678,1724400643095,-500.0,0.00016438,2]
[335651680,1724400643105,-500.0,0.00016438,2]
[335651682,1724400643116,-776.68,0.00016438,2]
[335651685,1724400643126,-988.56,0.00016438,2]
[335651686,1724400643136,-500.0,0.00016438,2]
[335651688,1724400643146,-922.22,0.00016438,2]
[335651690,1724400643156,-500.0,0.00016438,2]
[335651692,1724400643166,-500.0,0.00016438,2]
[335651694,1724400643176,-500.0,0.00016438,2]
[335651696,1724400643186,-500.0,0.00016438,2]
[335651698,1724400643196,-559.12,0.00016438,2]
[335651700,1724400643206,-500.0,0.00016438,2]
[335651702,1724400643216,-835.97,0.00016438,2]
[335651704,1724400643226,-500.0,0.00016438,2]
[335651707,1724400643235,-500.74838493,0.00016438,2]
[335651709,1724400643245,-501.92,0.00016438,2]
[335651711,1724400643254,-508.61469337,0.00016438,2]
[335651713,1724400643264,-500.0,0.00016438,2]
[335651715,1724400643274,-500.0,0.00016438,2]
[335651717,1724400643284,-500.0,0.00016438,2]
[335651718,1724400643294,-500.0,0.00016438,2]
[335651720,1724400643304,-2163.83,0.00016438,2]
[335651722,1724400643315,-500.0,0.00016438,2]
[335651724,1724400643324,-500.0,0.00016438,2]
[335651726,1724400643334,-503.04034733,0.00016438,2]
[335651728,1724400643344,-3234.03,0.00016438,2]
[335651730,1724400643353,-502.63246932,0.00016438,2]
[335651732,1724400643363,-500.0,0.00016438,2]
[335651734,1724400643373,-871.75,0.00016438,2]
[335651736,1724400643383,-500.45729683,0.00016438,2]
[335651738,1724400643392,-500.0,0.00016438,2]
[335651740,1724400643402,-500.0,0.00016438,2]
[335651742,1724400643415,-500.0,0.00016438,2]
[335651744,1724400643425,-500.0,0.00016438,2]
[335651746,1724400643436,-500.0,0.00016438,2]
[335651748,1724400643446,-997.54,0.00016438,2]
[335651749,1724400643455,-886.06,0.00016438,2]
[335651750,1724400643465,-610.13,0.00016438,2]
[335651751,1724400643475,-595.51,0.00016438,2]
[335651752,1724400643485,-938.76,0.00016438,2]
[335651753,1724400643497,-663.85,0.00016438,2]
[335651754,1724400643506,-583.33,0.00016438,2]
[335651755,1724400643516,-500.0,0.00016438,2]
[335651756,1724400643525,-500.0,0.00016438,2]
[335651757,1724400643535,-500.0,0.00016438,2]
[335651758,1724400643544,-766.88,0.00016438,2]
[335651759,1724400643554,-500.0,0.00016438,2]
[335651760,1724400643563,-500.0,0.00016438,2]
[335651761,1724400643573,-500.0,0.00016438,2]
[335651762,1724400643582,-918.84,0.00016438,2]
[335651763,1724400643592,-1048.23,0.00016438,2]
[335651764,1724400643602,-500.0,0.00016438,2]
[335651765,1724400643611,-815.72,0.00016438,2]
[335651766,1724400643621,-1278.97,0.00016438,2]
[335651767,1724400643631,-500.0,0.00016438,2]
[335651768,1724400643640,-500.0,0.00016438,2]
[335651769,1724400643650,-500.0,0.00016438,2]
[335651770,1724400643660,-500.0,0.00016438,2]
[335651771,1724400643671,-811.3,0.00016438,2]
[335651772,1724400643681,-500.0,0.00016438,2]
[335651773,1724400643691,-916.4,0.00016438,2]
[335651774,1724400643702,-1112.65,0.00016438,2]
[335651775,1724400643712,-500.0,0.00016438,2]
[335651776,1724400643721,-500.0,0.00016438,2]
[335651777,1724400643730,-500.0,0.00016438,2]
[335651778,1724400643741,-1135.87,0.00016438,2]
[335651779,1724400643750,-500.0,0.00016438,2]
[335651780,1724400643760,-601.35,0.00016438,2]
[335651781,1724400643770,-500.0,0.00016438,2]
[335651782,1724400643780,-500.0,0.00016438,2]
[335651783,1724400643790,-500.0,0.00016438,2]
[335651784,1724400643800,-500.0,0.00016438,2]
[335651785,1724400643810,-500.0,0.00016438,2]
[335651786,1724400643819,-500.0,0.00016438,2]
[335651787,1724400643829,-500.0,0.00016438,2]
[335651788,1724400643839,-500.0,0.00016438,2]
[335651789,1724400643849,-500.0,0.00016438,2]
[335651791,1724400644046,-1226.14,0.00016438,2]
[335651792,1724400644056,-671.06,0.00016438,2]
[335651793,1724400644066,-500.0,0.00016438,2]
[335651794,1724400644075,-500.0,0.00016438,2]
[335651795,1724400644084,-500.0,0.00016438,2]
[335651796,1724400644094,-500.0,0.00016438,2]
[335651797,1724400644105,-569.9,0.00016438,2]
[335651798,1724400644115,-500.0,0.00016438,2]
[335651799,1724400644125,-500.0,0.00016438,2]
[335651800,1724400644136,-500.0,0.00016438,2]
[335651801,1724400644145,-500.0,0.00016438,2]
[335651802,1724400644156,-500.0,0.00016438,2]
[335651803,1724400644165,-500.0,0.00016438,2]
[335651804,1724400644175,-1335.7,0.00016438,2]
[335651805,1724400644185,-500.0,0.00016438,2]
[335651806,1724400644196,-542.41031267,0.00016438,2]
[335651807,1724400644206,-500.0,0.00016438,2]
[335651808,1724400644216,-515.72,0.00016438,2]
[335651809,1724400644226,-1476.77,0.00016438,2]
[335651810,1724400644236,-500.0,0.00016438,2]
[335651811,1724400644248,-500.0,0.00016438,2]
[335651812,1724400644258,-500.0,0.00016438,2]
[335651813,1724400644267,-500.0,0.00016438,2]
[335651814,1724400644277,-618.01,0.00016438,2]
[335651815,1724400644287,-500.0,0.00016438,2]
[335651817,1724400644297,-500.0,0.00016438,2]
[335651819,1724400644307,-500.0,0.00016438,2]
[335651821,1724400644318,-767.47,0.00016438,2]
[335651823,1724400644327,-819.52,0.00016438,2]
[335651825,1724400644337,-927.9,0.00016438,2]
[335651827,1724400644348,-500.0,0.00016438,2]
[335651829,1724400644358,-500.0,0.00016438,2]
[335651831,1724400644368,-500.0,0.00016438,2]
[335651833,1724400644378,-500.0,0.00016438,2]
[335651835,1724400644387,-872.7,0.00016438,2]
[335651837,1724400644396,-715.53,0.00016438,2]
[335651839,1724400644406,-500.0,0.00016438,2]
[335651841,1724400644416,-500.0,0.00016438,2]
[335651843,1724400644426,-804.58,0.00016438,2]
[335651845,1724400644436,-827.78,0.00016438,2]
[335651847,1724400644445,-740.65,0.00016438,2]
[335651849,1724400644455,-500.0,0.00016438,2]
[335651852,1724400644464,-500.0,0.00016438,2]
[335651854,1724400644475,-500.0,0.00016438,2]
[335651856,1724400644485,-776.95,0.00016438,2]
[335651858,1724400644505,-500.0,0.00016438,2]
[335651860,1724400644515,-500.0,0.00016438,2]
[335651862,1724400644525,-500.0,0.00016438,2]
[335651864,1724400644534,-500.0,0.00016438,2]
[335651866,1724400644543,-1527.33,0.00016438,2]
[335651868,1724400644553,-532.89,0.00016438,2]
[335651870,1724400644562,-500.0,0.00016438,2]
[335651872,1724400644572,-500.0,0.00016438,2]
[335651874,1724400644582,-500.0,0.00016438,2]
[335651876,1724400644591,-500.0,0.00016438,2]
[335651879,1724400644601,-500.0,0.00016438,2]
[335651881,1724400644611,-1047.67,0.00016438,2]
[335651883,1724400644621,-500.0,0.00016438,2]
[335651885,1724400644630,-500.0,0.00016438,2]
[335651887,1724400644639,-500.0,0.00016438,2]
[335651889,1724400644649,-500.0,0.00016438,2]
[335651891,1724400644658,-500.0,0.00016438,2]
[335651893,1724400644668,-500.0,0.00016438,2]
[335651895,1724400644677,-500.0,0.00016438,2]
[335651897,1724400644686,-1240.63,0.00016438,2]
[335651899,1724400644696,-607.92,0.00016438,2]
[335651901,1724400644706,-500.0,0.00016438,2]
[335651903,1724400644715,-500.0,0.00016438,2]
[335651905,1724400644725,-718.89,0.00016438,2]
[335651907,1724400644735,-500.0,0.00016438,2]
[335651909,1724400644747,-500.0,0.00016438,2]
[335651911,1724400644756,-500.0,0.00016438,2]
[335651913,1724400644765,-500.0,0.00016438,2]
[335651915,1724400644775,-1180.35,0.00016438,2]
[335651917,1724400644784,-508.30643734,0.00016438,2]
[335651919,1724400644794,-500.0,0.00016438,2]
[335651921,1724400644804,-500.0,0.00016438,2]
[335651923,1724400644814,-501.00578619,0.00016438,2]
[335651925,1724400644824,-500.0,0.00016438,2]
[335651927,1724400644834,-528.73,0.00016438,2]
[335651929,1724400644843,-701.53,0.00016438,2]
[335651931,1724400644853,-1035.13,0.00016438,2]
[335651933,1724400644869,-711.07,0.00016438,2]
[335651935,1724400644879,-500.0,0.00016438,2]
[335651937,1724400644889,-500.0,0.00016438,2]
[335651939,1724400644899,-675.38,0.00016438,2]
[335651941,1724400644910,-500.0,0.00016438,2]
[335651943,1724400644920,-506.22716781,0.00016438,2]
[335651945,1724400644929,-858.99,0.00016438,2]
[335651947,1724400644941,-500.0,0.00016438,2]
[335651949,1724400644950,-500.0,0.00016438,2]
[335651952,1724400644960,-500.0,0.00016438,2]
[335651954,1724400644970,-500.0,0.00016438,2]
[335651956,1724400644980,-500.0,0.00016438,2]
[335651958,1724400644990,-491.31566962,0.00016438,2]
[335651960,1724400645000,-500.0,0.00016438,2]
[335651962,1724400645010,-500.0,0.00016438,2]
[335651964,1724400645020,-509.34574247,0.00016438,2]
[335651966,1724400645030,-500.0,0.00016438,2]
[335651968,1724400645040,-830.58,0.00016438,2]
[335651970,1724400645050,-596.35,0.00016438,2]
[335651972,1724400645060,-500.0,0.00016438,2]
[335651974,1724400645070,-542.16,0.00016438,2]
[335651976,1724400645079,-500.0,0.00016438,2]
[335651978,1724400645089,-1010.24,0.00016438,2]
[335651980,1724400645099,-547.36,0.00016438,2]
[335651982,1724400645109,-500.0,0.00016438,2]
[335651984,1724400645118,-500.0,0.00016438,2]
[335651986,1724400645128,-528.62,0.00016438,2]
[335651988,1724400645138,-500.0,0.00016438,2]
[335651991,1724400645148,-784.09,0.00016438,2]
[335651993,1724400645158,-591.85564208,0.00016438,2]
[335651995,1724400645167,-500.0,0.00016438,2]
[335651997,1724400645177,-621.27,0.00016438,2]
[335651999,1724400645186,-500.0,0.00016438,2]
[335652001,1724400645196,-500.0,0.00016438,2]
[335652003,1724400645206,-451.33411107,0.00016438,2]
[335652005,1724400645215,-500.0,0.00016438,2]
[335652007,1724400645225,-550.78632235,0.00016438,2]
[335652009,1724400645235,-500.0,0.00016438,2]
[335652011,1724400645245,-748.23,0.00016438,2]
[335652013,1724400645254,-500.0,0.00016438,2]
[335652015,1724400645264,-500.0,0.00016438,2]
[335652017,1724400645274,-500.0,0.00016438,2]
[335652019,1724400645284,-634.99,0.00016438,2]
[335652021,1724400645293,-864.1,0.00016438,2]
[335652023,1724400645303,-567.7,0.00016438,2]
[335652025,1724400645313,-646.85,0.00016438,2]
[335652027,1724400645322,-500.0,0.00016438,2]
[335652029,1724400645333,-500.0,0.00016438,2]
[335652031,1724400645343,-612.56,0.00016438,2]
[335652033,1724400645353,-2304.76,0.00016438,2]
[335652035,1724400645362,-941.27,0.00016438,2]
[335652037,1724400645372,-659.2,0.00016438,2]
[335652039,1724400645382,-1311.81,0.00016438,2]
[335652041,1724400645392,-620.17,0.00016438,2]
[335652044,1724400645402,-500.0,0.00016438,2]
[335652046,1724400645411,-500.0,0.00016438,2]
[335652048,1724400645421,-500.0,0.00016438,2]
[335652050,1724400645431,-573.88,0.00016438,2]
[335652052,1724400645441,-500.0,0.00016438,2]
[335652053,1724400645451,-500.0,0.00016438,2]
[335652056,1724400645461,-500.0,0.00016438,2]
[335652058,1724400645471,-500.0,0.00016438,2]
[335652060,1724400645480,-1026.55,0.00016438,2]
[335652062,1724400645490,-524.15852355,0.00016438,2]
[335652064,1724400645501,-500.0,0.00016438,2]
[335652066,1724400645510,-500.0,0.00016438,2]
[335652068,1724400645520,-500.0,0.00016438,2]
[335652070,1724400645530,-856.1,0.00016438,2]
[335652072,1724400645540,-2835.04,0.00016438,2]
[335652074,1724400645549,-924.08,0.00016438,2]
[335652076,1724400645559,-500.24498535,0.00016438,2]
[335652078,1724400645568,-555.0,0.00016438,2]
[335652080,1724400645578,-500.0,0.00016438,2]
[335652082,1724400645588,-804.61,0.00016438,2]
[335652084,1724400645598,-500.0,0.00016438,2]
[335652086,1724400645607,-500.0,0.00016438,2]
[335652088,1724400645618,-899.88,0.00016438,2]
[335652090,1724400645627,-500.0,0.00016438,2]
[335652092,1724400645637,-500.0,0.00016438,2]
[335652094,1724400645647,-1503.89,0.00016438,2]
[335652096,1724400645656,-500.0,0.00016438,2]
[335652098,1724400645665,-500.0,0.00016438,2]
[335652100,1724400645675,-4039.1,0.00016438,2]
[335652102,1724400645685,-500.0,0.00016438,2]
[335652104,1724400645694,-500.0,0.00016438,2]
[335652106,1724400645705,-1187.24,0.00016438,2]
[335652108,1724400645715,-1249.21,0.00016438,2]
[335652110,1724400645725,-500.0,0.00016438,2]
[335652112,1724400645735,-1130.51,0.00016438,2]
[335652114,1724400645745,-500.0,0.00016438,2]
[335652116,1724400645755,-1301.48,0.00016438,2]
[335652119,1724400645766,-1000.0,0.00016438,2]
[335652121,1724400645776,-1929.74,0.00016438,2]
[335652123,1724400645786,-500.0,0.00016438,2]
[335652125,1724400645796,-539.29807881,0.00016438,2]
[335652127,1724400645806,-2019.14,0.00016438,2]
[335652129,1724400645815,-500.0,0.00016438,2]
[335652130,1724400645825,-500.0,0.00016438,2]
[335652132,1724400645835,-500.0,0.00016438,2]
[335652134,1724400645845,-2358.57,0.00016438,2]
[335652137,1724400645856,-500.0,0.00016438,2]
[335652139,1724400645869,-500.0,0.00016438,2]
[335652141,1724400645878,-500.0,0.00016438,2]
[335652143,1724400645888,-1031.53,0.00016438,2]
[335652145,1724400645897,-500.0,0.00016438,2]
[335652147,1724400645908,-1208.33,0.00016438,2]
[335652149,1724400645918,-1060.12,0.00016438,2]
[335652150,1724400645928,-500.0,0.00016438,2]
[335652152,1724400645938,-1060.12,0.00016438,2]
[335652154,1724400645950,-500.0,0.00016438,2]
[335652156,1724400645960,-1060.12,0.00016438,2]
[335652158,1724400645970,-1060.12,0.00016438,2]
[335652160,1724400645979,-1060.12,0.00016438,2]
[335652162,1724400645990,-1060.12,0.00016438,2]
[335652164,1724400646000,-1060.12,0.00016438,2]
[335652166,1724400646009,-841.31,0.00016438,2]
[335652168,1724400646019,-1060.12,0.00016438,2]
[335652170,1724400646028,-500.0,0.00016438,2]
[335652172,1724400646038,-1060.12,0.00016438,2]
[335652175,1724400646048,-1060.12,0.00016438,2]
[335652177,1724400646057,-500.0,0.00016438,2]
[335652179,1724400646067,-1060.12,0.00016438,2]
[335652181,1724400646077,-1060.12,0.00016438,2]
[335652183,1724400646086,-1060.12,0.00016438,2]
[335652185,1724400646096,-1060.12,0.00016438,2]
[335652187,1724400646105,-1060.12,0.00016438,2]
[335652189,1724400646115,-1060.12,0.00016438,2]
[335652191,1724400646125,-1060.12,0.00016438,2]
[335652193,1724400646134,-500.0,0.00016438,2]
[335652195,1724400646144,-500.0,0.00016438,2]
[335652197,1724400646153,-504.30774141,0.00016438,2]
[335652198,1724400646163,-1187.73,0.00016438,2]
[335652200,1724400646173,-580.97,0.00016438,2]
[335652202,1724400646183,-500.0,0.00016438,2]
[335652204,1724400646193,-500.0,0.00016438,2]
[335652206,1724400646203,-500.0,0.00016438,2]
[335652207,1724400646212,-710.12,0.00016438,2]
[335652209,1724400646222,-501.3985454,0.00016438,2]
[335652211,1724400646231,-504.53,0.00016438,2]
[335652213,1724400646241,-3025.76,0.00016438,2]
[335652215,1724400646252,-533.94,0.00016438,2]
[335652217,1724400646262,-3025.76,0.00016438,2]
[335652219,1724400646272,-3025.76,0.00016438,2]
[335652221,1724400646281,-500.0,0.00016438,2]
[335652223,1724400646291,-3025.76,0.00016438,2]
[335652225,1724400646301,-3025.76,0.00016438,2]
[335652227,1724400646311,-3025.76,0.00016438,2]
[335652229,1724400646321,-3025.76,0.00016438,2]
[335652231,1724400646331,-3025.76,0.00016438,2]
[335652233,1724400646341,-3025.76,0.00016438,2]
[335652235,1724400646350,-1441.56,0.00016438,2]
[335652243,1724400646424,-3025.76,0.00016438,2]
[335652246,1724400646437,-3025.76,0.00016438,2]
[335652247,1724400646447,-3025.76,0.00016438,2]
[335652249,1724400646457,-3025.76,0.00016438,2]
[335652251,1724400646466,-3025.76,0.00016438,2]
[335652253,1724400646476,-1428.32,0.00016438,2]
[335652255,1724400646486,-500.0,0.00016438,2]
[335652257,1724400646496,-3025.76,0.00016438,2]
[335652259,1724400646506,-3025.76,0.00016438,2]
[335652261,1724400646515,-3025.76,0.00016438,2]
[335652263,1724400646525,-500.0,0.00016438,2]
[335652265,1724400646537,-3025.76,0.00016438,2]
[335652267,1724400646546,-3025.76,0.00016438,2]
[335652269,1724400646555,-3025.76,0.00016438,2]
[335652271,1724400646565,-3025.76,0.00016438,2]
[335652273,1724400646576,-3025.76,0.00016438,2]
[335652275,1724400646586,-3025.76,0.00016438,2]
[335652278,1724400646596,-3025.90113322,0.00016438,2]
[335652279,1724400646606,-500.0,0.00016438,2]
[335652282,1724400646616,-594.1,0.00016438,2]
[335652284,1724400646628,-594.1,0.00016438,2]
[335652286,1724400646638,-500.0,0.00016438,2]
[335652288,1724400646647,-500.0,0.00016438,2]
[335652290,1724400646657,-594.1,0.00016438,2]
[335652292,1724400646667,-516.60999901,0.00016438,2]
[335652294,1724400646679,-594.1,0.00016438,2]
[335652296,1724400646688,-594.1,0.00016438,2]
[335652298,1724400646698,-500.0,0.00016438,2]
[335652300,1724400646708,-594.1,0.00016438,2]
[335652302,1724400646717,-500.0,0.00016438,2]
[335652303,1724400646726,-500.0,0.00016438,2]
[335652305,1724400646735,-594.1,0.00016438,2]
[335652307,1724400646748,-594.1,0.00016438,2]
[335652309,1724400646758,-822.16,0.00016438,2]
[335652311,1724400646767,-594.1,0.00016438,2]
[335652313,1724400646776,-500.0,0.00016438,2]
[335652315,1724400646786,-594.1,0.00016438,2]
[335652317,1724400646797,-594.1,0.00016438,2]
[335652319,1724400646807,-594.1,0.00016438,2]
[335652321,1724400646817,-594.1,0.00016438,2]
[335652323,1724400646826,-594.1,0.00016438,2]
[335652325,1724400646836,-594.1,0.00016438,2]
[335652327,1724400646845,-355.64815257,0.00016438,2]
[335652362,1724400647347,-238.45184743,0.00016438,2]
[335652364,1724400647357,-594.1,0.00016438,2]
[335652366,1724400647368,-500.0,0.00016438,2]
[335652368,1724400647378,-594.1,0.00016438,2]
[335652370,1724400647388,-594.1,0.00016438,2]
[335652372,1724400647398,-594.1,0.00016438,2]
[335652374,1724400647407,-594.1,0.00016438,2]
[335652376,1724400647417,-594.1,0.00016438,2]
[335652378,1724400647426,-594.1,0.00016438,2]
[335652380,1724400647436,-594.22743402,0.00016438,2]
[335652382,1724400647445,-500.0,0.00016438,2]
[335652384,1724400647455,-500.0,0.00016438,2]
[335652386,1724400647464,-3760.76,0.00016438,2]
[335652388,1724400647473,-687.57,0.00016438,2]
[335652390,1724400647484,-652.9,0.00016438,2]
[335652392,1724400647493,-506.04598366,0.00016438,2]
[335652394,1724400647503,-500.0,0.00016438,2]
[335652396,1724400647514,-3167.46,0.00016438,2]
[335652398,1724400647524,-500.0,0.00016438,2]
[335652400,1724400647533,-500.0,0.00016438,2]
[335652402,1724400647543,-500.0,0.00016438,2]
[335652404,1724400647553,-2897.18,0.00016438,2]
[335652406,1724400647563,-500.0,0.00016438,2]
[335652408,1724400647572,-500.0,0.00016438,2]
[335652410,1724400647582,-500.0,0.00016438,2]
[335652412,1724400647591,-1003.98,0.00016438,2]
[335652414,1724400647600,-500.0,0.00016438,2]
[335652416,1724400647609,-1002.65,0.00016438,2]
[335652418,1724400647619,-761.17,0.00016438,2]
[335652420,1724400647629,-503.40141786,0.00016438,2]
[335652422,1724400647639,-948.02,0.00016438,2]
[335652424,1724400647648,-3043.36,0.00016438,2]
[335652426,1724400647658,-500.0,0.00016438,2]
[335652428,1724400647667,-1917.66246265,0.00016438,2]
[335652512,1724400648490,-1107.04753735,0.00016438,2]
[335652514,1724400648501,-1312.81,0.00016438,2]
[335652516,1724400648513,-500.0,0.00016438,2]
[335652518,1724400648523,-817.92,0.00016438,2]
[335652521,1724400648534,-500.0,0.00016438,2]
[335652523,1724400648544,-500.0,0.00016438,2]
[335652525,1724400648555,-500.0,0.00016438,2]
[335652527,1724400648565,-500.0,0.00016438,2]
[335652529,1724400648574,-500.0,0.00016438,2]
[335652531,1724400648584,-500.0,0.00016438,2]
[335652533,1724400648594,-500.0,0.00016438,2]
[335652535,1724400648605,-500.0,0.00016438,2]
[335652537,1724400648615,-500.0,0.00016438,2]
[335652539,1724400648626,-500.0,0.00016438,2]
[335652541,1724400648636,-500.0,0.00016438,2]
[335652543,1724400648646,-500.0,0.00016438,2]
[335652545,1724400648655,-500.0,0.00016438,2]
[335652548,1724400648666,-500.0,0.00016438,2]
[335652550,1724400648676,-500.0,0.00016438,2]
[335652552,1724400648686,-500.0,0.00016438,2]
[335652554,1724400648696,-500.0,0.00016438,2]
[335652556,1724400648708,-962.66,0.00016438,2]